bitfinex-derivatives/quotes_ETHF0:USTF0_20251021
["timestamp","ask_amount","ask_price","bid_price","bid_amount"]
[1761056256153,40.8,3933.1,3932.4,1.7181]
[1761056256349,40.8,3933.1,3932.5,0.45755]
[1761056256554,2.96022,3933.2,3932.5,1.7181]
[1761056256752,0.45758,3932.4,3932.2,0.00292132]
[1761056256949,1.8165,3932.3,3932.2,0.00292132]
[1761056257248,40.8,3932.8,3932.3,1.7181]
[1761056257458,40.8,3932.8,3932.7,1.7181]
[1761056257649,1.8165,3933.1,3932.2,1.72102132]
[1761056257949,1.8165,3932.3,3932.2,0.00292132]
[1761056258344,1.8165,3933.3,3932.2,0.00292132]
[1761056258546,1.8165,3933.3,3932.8,1.7181]
[1761056258746,0.00275337,3933.9,3932.8,1.7181]
[1761056258952,0.00275337,3933.9,3933.7,1.7181]
[1761056259156,0.00275337,3933.9,3933.7,0.45741]
[1761056259760,0.45742,3933.8,3933.6,0.45743]
[1761056260058,0.00275337,3933.9,3933.7,0.45742]
[1761056260361,6.3055,3935.6,3934.8,0.45729]
[1761056260553,0.45725,3935.2,3934.8,0.45729]
[1761056260748,0.45728,3935.0,3934.1,0.66008166]
[1761056260951,0.45729,3934.9,3934.7,0.45731]
[1761056261160,0.45727,3935.1,3934.8,1.7181]
[1761056261460,0.45731,3934.8,3934.3,1.7181]
[1761056261661,0.45729,3934.9,3934.5,2.17543]
[1761056261860,0.00203349,3935.1,3934.5,2.17543]
[1761056262051,0.00203349,3935.1,3934.1,0.66008166]
[1761056262052,1.8165,3935.0,3934.2,2.37818166]
[1761056262248,2.27385,3934.4,3934.3,0.61192762]
[1761056262449,1.8165,3933.9,3933.3,1.11755166]
[1761056262656,1.8165,3934.4,3933.4,0.6123636]
[1761056262851,0.45742,3933.8,3933.6,0.45743]
[1761056263055,1.8165,3934.4,3933.7,2.3304636]
[1761056263265,0.45741,3933.9,3933.7,1.7181]
[1761056263561,0.7068,3934.8,3933.7,1.7181]
[1761056263562,2.27389,3934.0,3933.7,1.7181]
[1761056263752,1.8165,3934.0,3933.3,0.66008166]
[1761056263948,0.45744,3933.6,3933.4,0.61258643]
[1761056264161,0.45743,3933.7,3933.5,0.61258643]
[1761056264358,0.45746,3933.4,3933.2,2.37818166]
[1761056264558,1.8165,3933.9,3933.3,0.61290503]
[1761056264765,2.27395,3933.5,3933.4,0.61290503]
[1761056265268,1.8165,3933.5,3933.0,0.66008166]
[1761056265569,0.7068,3933.9,3933.1,0.61286669]
[1761056265857,0.7068,3933.9,3933.2,0.61286669]
[1761056266160,1.8165,3934.4,3933.6,0.45743]
[1761056266374,1.8165,3933.9,3933.7,0.6125326]
[1761056266655,2.27396,3933.4,3933.3,0.66008166]
[1761056266848,2.27396,3933.4,3933.3,0.61271764]
[1761056267248,0.45746,3933.4,3933.3,0.61289004]
[1761056267447,2.27396,3933.4,3933.3,0.61289004]
[1761056267662,0.45746,3933.4,3933.3,0.61289004]
[1761056267863,2.27396,3933.4,3933.3,0.61289004]
[1761056268049,0.45746,3933.4,3933.3,0.61289004]
[1761056268253,1.8165,3933.4,3933.3,0.61289004]
[1761056268453,1.8165,3933.4,3932.6,0.66008166]
[1761056268656,1.8165,3932.4,3932.3,0.66008166]
[1761056268962,1.8165,3933.1,3932.4,1.7181]
[1761056269156,12.0645,3934.2,3932.6,1.7181]
[1761056269461,1.8165,3934.5,3933.3,1.7181]
[1761056269659,1.8165,3933.5,3933.4,1.27793989]
[1761056269865,1.8165,3933.5,3933.4,0.61616214]
[1761056270061,11.39342,3934.2,3933.4,1.27793989]
[1761056270062,1.8165,3934.1,3933.4,1.27793989]
[1761056270273,1.8165,3934.1,3933.1,0.89546764]
[1761056270274,1.8165,3933.6,3933.5,0.61616214]
[1761056271250,5.0,3933.6,3933.1,0.66177775]
[1761056271452,1.97217,3933.3,3933.2,1.2848828]
[1761056271672,1.97217,3933.3,3933.2,0.62310505]
[1761056271855,1.97224,3932.8,3932.5,0.66177775]
[1761056272058,1.5147,3932.6,3932.5,0.66177775]
[1761056272258,1.97223,3932.8,3932.5,0.66177775]
[1761056272458,1.5147,3932.8,3932.6,0.66177775]
[1761056273058,1.5147,3932.9,3932.6,0.66177775]
[1761056273364,1.97225,3932.6,3932.5,0.66177775]
[1761056273661,1.97227,3932.4,3932.3,0.66177775]
[1761056273857,1.97227,3932.4,3932.2,0.00292132]
[1761056273858,1.5147,3932.3,3932.2,0.00292132]
[1761056274059,6.51791207,3932.3,3932.2,0.00292132]
[1761056274275,0.45763,3931.9,3931.7,0.66177775]
[1761056274452,0.45763,3931.9,3931.3,1.3469307]
[1761056274453,0.45768,3931.5,3931.3,0.66177775]
[1761056274652,0.45768,3931.5,3930.3,1.6122]
[1761056274653,1.5147,3931.0,3930.9,0.66177775]
[1761056275160,1.5147,3930.8,3930.7,0.89546764]
[1761056275361,1.5147,3930.8,3930.7,0.00267468]
[1761056275565,1.5147,3930.8,3930.7,0.66691705]
[1761056275952,1.5147,3930.8,3930.7,0.00267468]
[1761056276153,1.5147,3931.7,3931.2,0.45771]
[1761056276361,1.5147,3932.2,3931.1,1.6122]
[1761056276562,1.14367,3933.4,3931.1,1.6122]
[1761056276563,1.5147,3932.6,3931.5,2.27644237]
[1761056276767,1.5147,3932.6,3932.1,2.0698]
[1761056276963,1.5147,3932.6,3932.2,1.6122]
[1761056277161,1.5147,3932.6,3932.1,1.12184237]
[1761056277661,1.5147,3932.6,3932.2,1.6122]
[1761056278064,1.5147,3932.2,3932.0,0.66299447]
[1761056278258,0.46081207,3932.3,3931.8,0.66299447]
[1761056278259,1.5147,3932.0,3931.8,0.66299447]
[1761056278454,1.5147,3932.0,3931.6,0.45766]
[1761056278455,1.5147,3932.0,3931.7,1.12064447]
[1761056278662,1.5147,3932.2,3931.8,2.73283447]
[1761056278866,0.00321207,3932.3,3931.9,1.6122]
[1761056279060,1.51791207,3932.3,3931.9,2.27519447]
[1761056279261,1.51791207,3932.3,3931.8,0.66299447]
[1761056279464,1.5147,3932.2,3931.8,1.12063447]
[1761056279774,1.5147,3932.2,3931.9,0.45763]
[1761056280070,1.14377,3933.0,3932.0,0.45762]
[1761056280272,1.14377,3933.0,3931.7,0.66299447]
[1761056280273,1.14386,3932.7,3931.7,0.66299447]
[1761056280471,0.45764,3931.9,3931.7,0.66299447]
[1761056280671,9.35688207,3933.1,3932.9,0.45752]
[1761056280861,10.24,3934.2,3933.1,1.6122]
[1761056281062,0.45744,3933.6,3933.1,1.6122]
[1761056281263,0.4574,3934.0,3933.5,0.45745]
[1761056281563,0.45742,3933.8,3933.5,1.61491295]
[1761056281763,0.4574,3934.0,3933.5,1.61491295]
[1761056281968,1.4947,3934.0,3933.5,1.61491295]
[1761056282171,0.45739,3934.0,3933.5,2.07236295]
[1761056282375,10.24223754,3934.2,3933.5,1.61491295]
[1761056282673,0.00223754,3934.2,3934.1,1.6122]
[1761056283369,0.00223754,3934.2,3934.1,2.22669641]
[1761056283671,1.59599254,3937.4,3935.8,1.6122]
[1761056283879,0.4571,3936.5,3935.8,1.6122]
[1761056284172,0.4571,3936.5,3935.9,1.6122]
[1761056284173,0.45711,3936.5,3935.9,1.6122]
[1761056284364,1.14265,3936.9,3935.3,1.6122]
[1761056284565,0.4572,3935.7,3934.9,1.6122]
[1761056284766,0.00239412,3936.9,3935.1,1.6122]
[1761056284970,1.03969412,3936.9,3935.6,0.45719]
[1761056285160,0.45708,3936.7,3935.8,2.06937]
[1761056285478,0.45713,3936.3,3935.5,1.6122]
[1761056285772,0.45708,3936.7,3936.0,1.6122]
[1761056285973,0.00239412,3936.9,3936.7,1.6122]
[1761056286175,0.00239412,3936.9,3936.7,1.6152784]
[1761056286679,1.49436,3936.8,3936.7,0.0030784]
[1761056286977,0.45706,3936.8,3936.7,0.0030784]
[1761056287174,0.00239412,3936.9,3936.7,0.0030784]
[1761056287372,1.0373,3936.8,3936.7,0.0030784]
[1761056287573,0.00239412,3936.9,3936.7,0.0030784]
[1761056287878,0.00748926,3937.3,3936.7,0.0030784]
[1761056287879,1.94441875,3939.9,3938.1,1.6122]
[1761056288076,1.0373,3939.7,3937.5,0.6664]
[1761056288378,1.0373,3938.8,3937.6,1.6122]
[1761056288584,1.0373,3939.5,3937.6,1.6122]
[1761056288877,1.0373,3939.5,3937.9,1.6122]
[1761056288878,1.0373,3939.3,3937.9,1.6122]
[1761056289076,1.0373,3939.3,3937.6,1.6122]
[1761056289274,1.0373,3939.3,3937.6,0.45696]
[1761056289468,0.45681,3939.1,3938.1,1.6122]
[1761056289679,0.45681,3939.1,3937.5,0.6664]
[1761056289680,0.002868,3939.5,3938.5,1.6122]
[1761056289864,0.4568,3939.2,3938.5,1.6122]
[1761056290176,0.002868,3939.5,3938.5,1.6122]
[1761056290775,1.0373,3939.4,3938.5,1.6122]
[1761056290978,0.002868,3939.5,3938.5,1.6122]
[1761056290979,0.45684,3938.8,3938.5,1.6122]
[1761056291184,0.002868,3939.5,3937.6,1.6122]
[1761056291476,0.002868,3939.5,3939.3,1.6122]
[1761056291875,0.002868,3939.5,3939.1,1.6122]
[1761056292376,0.002868,3939.5,3939.0,0.6664]
[1761056292377,0.45664,3940.5,3939.5,1.6122]
[1761056292565,0.25373626,3941.1,3939.5,2.06895]
[1761056292777,1.0373,3942.4,3940.0,0.6664]
[1761056292976,0.45655,3941.3,3940.5,1.6122]
[1761056293184,1.0373,3941.6,3940.5,1.6122]
[1761056293480,1.0373,3941.6,3940.5,1.61515254]
[1761056293481,0.4566,3940.8,3940.5,1.61515254]
[1761056293772,0.00245711,3941.6,3940.5,1.61515254]
[1761056293983,0.00245711,3941.6,3940.6,1.6122]
[1761056294171,0.45655,3941.3,3940.6,1.6122]
[1761056294370,0.45896711,3941.6,3941.0,0.6664]
[1761056294566,0.45896711,3941.6,3941.1,1.6122]
[1761056294567,0.00245711,3941.6,3941.1,1.6122]
[1761056294770,10.432,3942.8,3941.1,1.6122]
[1761056294975,10.432,3942.8,3941.4,0.45653]
[1761056294976,0.47837,3942.8,3941.4,0.45653]
[1761056295180,0.022,3942.8,3941.5,1.6122]
[1761056295378,1.0593,3942.8,3941.5,1.6122]
[1761056295578,1.0593,3942.8,3941.0,0.6664]
[1761056295579,0.4565,3941.7,3941.0,0.6664]
[1761056295766,0.4565,3941.7,3938.6,0.66060742]
[1761056295767,0.45658,3941.0,3940.6,1.6122]
[1761056295971,1.04004636,3941.7,3940.6,1.6122]
[1761056295972,0.4566,3940.8,3940.6,1.6122]
[1761056296172,0.00274636,3941.7,3940.6,1.6122]
[1761056296379,0.45653,3941.4,3940.6,1.6122]
[1761056296570,0.00274636,3941.7,3941.1,1.6122]
[1761056296971,1.0373,3941.5,3940.5,1.61515254]
[1761056297178,0.45653,3941.4,3940.5,1.61515254]
[1761056297373,0.30274636,3941.7,3941.1,1.6122]
[1761056297374,0.00274636,3941.7,3941.1,1.6122]
[1761056297578,0.022,3942.8,3942.1,1.6122]
[1761056298085,0.022,3942.8,3941.2,3.36188362]
[1761056298086,1.0593,3942.8,3941.2,1.6122]
[1761056298376,3.85698,3942.7,3941.2,1.6122]
[1761056298582,0.4565,3941.7,3941.2,1.6122]
[1761056298879,0.943,3942.6,3941.2,1.6122]
[1761056299077,0.45653,3941.5,3941.2,1.6122]
[1761056299276,0.943,3941.9,3940.6,1.5369]
[1761056299483,0.943,3942.5,3940.6,1.5369]
[1761056299781,0.4566,3940.9,3940.6,1.5369]
[1761056299970,0.0023542,3942.7,3940.6,1.5369]
[1761056300177,0.45643,3942.3,3941.1,1.5369]
[1761056300370,0.45649,3941.8,3941.1,1.5369]
[1761056300573,0.4565,3941.7,3941.1,1.5369]
[1761056300883,0.4565,3941.7,3941.0,0.6287]
[1761056300884,0.0023542,3942.7,3942.0,0.6039]
[1761056301489,0.0023542,3942.7,3941.2,0.45656]
[1761056301778,0.0023542,3942.7,3941.0,0.6287]
[1761056301982,0.45644,3942.4,3941.0,0.6287]
[1761056302182,0.45647,3942.0,3941.0,0.6287]
[1761056302376,0.45645,3942.3,3941.1,3.28248218]
[1761056302574,0.45648,3942.0,3941.0,0.6287]
[1761056302775,0.45643,3942.5,3941.0,0.6287]
[1761056302979,0.45653,3941.6,3941.1,1.5309]
[1761056303180,0.45647,3942.1,3941.1,1.5309]
[1761056303485,0.0023542,3942.7,3942.1,1.5309]
[1761056303676,0.4587542,3942.7,3942.1,1.5309]
[1761056303876,40.8023542,3942.7,3942.1,1.5309]
[1761056304086,0.0023542,3942.7,3942.1,1.98736]
[1761056304387,0.0023542,3942.7,3942.6,1.5309]
[1761056304782,1.5641,3944.7,3943.3,1.5309]
[1761056304986,0.4563,3943.6,3943.3,1.5309]
[1761056305186,40.8,3944.3,3943.3,1.5309]
[1761056305486,1.1403,3945.2,3943.3,1.5309]
[1761056305487,1.5641,3945.2,3943.3,1.5309]
[1761056305675,0.00297914,3945.2,3943.5,1.5309]
[1761056305877,0.00297914,3945.2,3944.1,1.5309]
[1761056306082,0.00297914,3945.2,3944.0,0.6039]
[1761056306288,1.5641,3947.7,3945.1,1.5309]
[1761056306482,1.5641,3946.9,3945.1,1.5309]
[1761056306682,1.5641,3946.5,3945.1,1.5309]
[1761056306882,1.5641,3947.2,3945.1,1.98701]
[1761056307184,5.21,3947.1,3945.2,1.987]
[1761056307487,0.00212264,3947.2,3945.3,1.5309]
[1761056307686,0.45608,3945.5,3945.3,1.36837788]
[1761056307879,0.45609,3945.4,3944.0,0.6039]
[1761056308079,2.70413,3946.1,3944.0,0.6039]
[1761056308080,1.5641,3946.1,3944.0,0.6039]
[1761056308281,6.738,3947.3,3944.1,3.36390196]
[1761056308489,0.456,3946.2,3944.8,0.45615]
[1761056308688,0.456,3946.2,3944.1,3.36390196]
[1761056308689,1.13968,3947.3,3944.2,1.14056]
[1761056308891,0.45598,3946.3,3944.1,3.36390196]
[1761056309093,0.45597,3946.4,3944.9,3.70669522]
[1761056309288,0.00212264,3947.2,3944.1,3.25056522]
[1761056309483,1.56622264,3947.2,3944.1,3.25056522]
[1761056309680,1.56622264,3947.2,3945.7,0.6039]
[1761056309978,0.45602,3946.0,3945.8,1.48360612]
[1761056310378,1.13974,3947.1,3944.8,0.45614]
[1761056310379,0.45605,3945.8,3944.8,0.45614]
[1761056310587,1.5641,3946.5,3944.9,0.45613]
[1761056310778,0.456,3946.2,3944.6,0.6039]
[1761056310977,0.45601,3946.1,3945.1,0.45611]
[1761056311181,1.5641,3946.5,3944.6,1.06007]
[1761056311489,0.45611,3945.3,3944.6,0.6039]
[1761056311691,10.792,3946.7,3944.6,0.6039]
[1761056311692,2.02007,3946.5,3944.6,0.6039]
[1761056311897,0.45599,3946.3,3944.9,1.98703]
[1761056312083,1.5641,3946.4,3945.1,1.5309]
[1761056312390,0.45605,3945.8,3945.2,1.5309]
[1761056312594,0.4561,3945.3,3944.7,1.5309]
[1761056312892,0.45603,3945.9,3945.1,1.5309]
[1761056313084,0.45603,3946.0,3945.1,1.5309]
[1761056313389,0.45604,3945.9,3945.1,1.5309]
[1761056313684,0.45605,3945.8,3945.1,1.5309]
[1761056313889,0.45603,3945.9,3945.1,1.5309]
[1761056314294,0.45607,3945.6,3945.1,1.5309]
[1761056314486,1.5641,3946.3,3945.1,1.5309]
[1761056314689,0.4561,3945.4,3944.5,1.5309]
[1761056314887,0.45614,3945.0,3944.5,1.5309]
[1761056315189,40.8,3944.9,3944.5,1.5309]
[1761056315387,2.2046,3946.0,3944.5,1.5309]
[1761056315388,0.45608,3945.5,3944.5,1.5309]
[1761056315586,0.45612,3945.2,3944.5,1.5309]
[1761056315895,0.6405,3946.0,3944.5,1.5309]
[1761056315896,0.45613,3945.0,3944.5,1.5309]
[1761056316082,5.6721,3945.4,3944.0,0.6039]
[1761056316281,0.45619,3944.6,3944.0,0.6039]
[1761056316486,1.5641,3945.1,3944.0,0.6039]
[1761056316487,0.45616,3944.9,3944.1,1.5309]
[1761056316786,0.45618,3944.6,3943.4,0.45631]
[1761056316989,0.45618,3944.6,3943.0,0.84616774]
[1761056316990,0.45624,3944.1,3943.6,1.5309]
[1761056317179,1.5641,3944.0,3943.0,0.6039]
[1761056317385,0.00290672,3944.1,3943.4,1.5309]
[1761056317586,1.56700672,3944.1,3943.4,1.5309]
[1761056317787,0.4563,3943.6,3943.0,0.6039]
[1761056317977,0.4563,3943.6,3942.9,1.5309]
[1761056317978,0.45631,3943.4,3942.9,1.5309]
[1761056318183,2.02041,3943.4,3942.4,1.5309]
[1761056318485,0.45641,3942.7,3942.4,1.5309]
[1761056318688,0.45644,3942.4,3942.0,2.1348]
[1761056318990,1.5641,3942.6,3941.2,1.5309]
[1761056319191,0.4428,3943.0,3941.2,1.5309]
[1761056319192,1.5641,3942.3,3941.2,1.5309]
[1761056319488,11.91479,3943.5,3941.2,1.5309]
[1761056319489,1.5641,3943.9,3941.3,4.89277371]
[1761056319685,1.5641,3943.8,3941.4,1.5309]
[1761056319889,1.56700672,3944.1,3943.0,1.5309]
[1761056320690,0.00290672,3944.1,3943.5,1.5309]
[1761056320996,0.00290672,3944.1,3943.5,1.98719]
[1761056321191,0.45914672,3944.1,3943.5,1.98719]
[1761056321387,0.00290672,3944.1,3943.6,1.98719]
[1761056321588,0.00290672,3944.1,3943.7,1.5309]
[1761056321791,0.00290672,3944.1,3944.0,1.5309]
[1761056321993,0.00290672,3944.1,3944.0,1.53312808]
[1761056322489,1.5641,3945.6,3944.7,1.5309]
[1761056322802,0.45613,3945.0,3944.1,1.5309]
[1761056322992,0.4562,3944.4,3944.1,1.5309]
[1761056323191,0.4562,3944.5,3944.0,0.00222808]
[1761056323494,1.5641,3945.6,3944.3,0.45621]
[1761056323689,1.5641,3945.6,3944.0,0.00222808]
[1761056323690,0.45609,3945.4,3944.5,1.5309]
[1761056323990,40.8,3945.4,3944.5,1.5309]
[1761056324192,0.45619,3944.5,3944.0,0.00222808]
[1761056324398,0.45623,3944.2,3944.0,1.53312808]
[1761056324599,0.4562,3944.4,3944.0,1.53312808]
[1761056324798,0.45623,3944.1,3944.0,0.00222808]
[1761056325192,0.45621,3944.3,3944.0,0.00222808]
[1761056325392,0.45621,3944.3,3944.0,1.53312808]
[1761056325596,1.5641,3944.5,3944.0,0.00222808]
[1761056325796,1.5641,3944.2,3944.0,0.00222808]
[1761056326091,10.848,3944.3,3944.0,0.00222808]
[1761056326092,2.02034,3944.1,3944.0,0.00222808]
[1761056326494,7.02034,3944.1,3944.0,0.00222808]
[1761056326694,0.45633,3943.3,3943.0,1.5309]
[1761056326890,0.45633,3943.3,3942.0,1.26450742]
[1761056326891,10.822,3943.2,3942.1,1.5309]
[1761056327088,51.622,3943.1,3942.2,1.5309]
[1761056327287,0.45641,3942.6,3941.7,0.4565]
[1761056327589,10.818,3942.8,3942.1,1.5309]
[1761056327786,2.02055,3942.3,3942.1,0.00284665]
[1761056327999,1.5641,3942.2,3942.1,0.00284665]
[1761056328199,0.45649,3941.9,3941.3,0.45655]
[1761056328397,10.81979698,3942.8,3941.9,1.5309]
[1761056328398,10.817,3942.3,3941.9,1.5309]
[1761056328594,10.83,3942.2,3941.1,1.5309]
[1761056328793,1.5641,3942.6,3941.7,0.4565]
[1761056328993,1.56589698,3942.8,3941.4,1.5309]
[1761056329194,1.56589698,3942.8,3942.0,1.5309]
[1761056329195,10.829,3942.7,3942.0,1.5309]
[1761056329394,1.5641,3942.6,3941.7,0.002132]
[1761056329907,2.02059,3941.9,3941.7,0.002132]
[1761056330201,1.5641,3942.1,3941.0,1.5309]
[1761056330405,10.824,3942.0,3941.1,1.98748]
[1761056330598,10.824,3942.0,3940.3,1.14169]
[1761056330599,10.825,3941.9,3941.7,1.4364]
[1761056330799,20.54579698,3942.8,3942.3,1.4364]
[1761056330800,0.00179698,3942.8,3942.3,1.4364]
[1761056331001,0.00179698,3942.8,3942.3,1.89575213]
[1761056331204,0.00179698,3942.8,3942.3,0.00291213]
[1761056331400,12.7098,3942.7,3942.3,0.00291213]
[1761056331700,0.00179698,3942.8,3942.4,1.4364]
[1761056331905,1.4234,3942.3,3941.4,0.66060742]
[1761056332099,1.4234,3942.3,3941.4,0.33680744]
[1761056332295,0.45657,3941.2,3939.7,0.88080989]
[1761056332497,1.4234,3942.6,3939.8,0.2347285]
[1761056332703,1.4234,3942.6,3941.1,1.4364]
[1761056332704,0.45649,3942.0,3941.1,1.4364]
[1761056332897,0.45649,3942.0,3940.1,0.88080989]
[1761056332898,1.4234,3942.1,3940.0,0.88080989]
[1761056333098,0.45658,3941.2,3940.3,1.4364]
[1761056333299,1.14276698,3942.8,3942.6,1.4364]
[1761056333300,0.00179698,3942.8,3942.6,1.4364]
[1761056333603,0.00179698,3942.8,3942.7,1.4364]
[1761056333799,0.4563,3943.6,3942.7,6.4364]
[1761056334003,11.3773,3943.6,3942.9,1.4364]
[1761056334206,10.921,3943.6,3942.9,1.4364]
[1761056334502,1.4234,3943.6,3942.9,1.4364]
[1761056334707,1.4234,3943.6,3942.0,0.5677]
[1761056334708,0.45637,3943.0,3942.2,1.4364]
[1761056334912,0.00307589,3943.0,3942.0,0.5677]
[1761056335100,0.00307589,3943.0,3942.9,1.4364]
[1761056335698,10.904,3944.4,3943.3,1.4364]
[1761056335905,0.45627,3943.8,3943.3,1.4364]
[1761056336102,1.4234,3944.3,3943.3,1.4364]
[1761056336306,0.4563,3943.6,3943.3,1.4364]
[1761056336506,1.4234,3944.7,3942.8,1.4364]
[1761056336696,1.4234,3944.7,3943.1,1.4364]
[1761056336896,1.42586371,3944.7,3943.6,0.45628]
[1761056337206,1.4234,3943.4,3942.2,0.88080989]
[1761056337406,1.4234,3942.3,3941.6,1.7959076]
[1761056337604,1.4234,3942.1,3941.1,1.4364]
[1761056337908,10.343,3942.2,3941.1,1.4364]
[1761056338100,11.36445,3942.3,3941.4,1.4364]
[1761056338308,1.4234,3942.2,3941.4,1.4364]
[1761056338504,0.45648,3942.0,3941.4,1.43841624]
[1761056338702,10.907,3941.9,3941.4,1.43841624]
[1761056338902,10.90961857,3941.9,3941.4,1.43841624]
[1761056339113,12.33301857,3941.9,3941.4,1.43841624]
[1761056339409,0.00261857,3941.9,3941.6,1.4364]
[1761056339604,0.00261857,3941.9,3941.5,0.45653]
[1761056339605,0.00261857,3941.9,3941.5,1.4364]
[1761056340199,0.00261857,3941.9,3941.5,1.89293]
[1761056340506,0.00261857,3941.9,3941.5,1.4364]
[1761056340705,0.00261857,3941.9,3941.8,1.4364]
[1761056341099,0.00261857,3941.9,3941.8,6.4364]
[1761056341298,0.00261857,3941.9,3941.8,1.4364]
[1761056341502,0.45637,3942.9,3941.9,1.4364]
[1761056341713,1.4234,3942.9,3941.9,1.4364]
[1761056341912,0.45645,3942.3,3941.9,1.4364]
[1761056342706,0.45647,3942.1,3941.4,1.43841624]
[1761056342908,1.42594712,3942.3,3941.4,1.43841624]
[1761056343098,0.00254712,3942.3,3942.1,1.4364]
[1761056343301,0.90711875,3944.6,3942.1,1.4364]
[1761056343500,0.90711875,3944.6,3943.1,1.4364]
[1761056343501,1.4234,3944.6,3943.1,1.4364]
[1761056343807,0.45623,3944.2,3943.2,0.45634]
[1761056344013,1.4234,3944.3,3943.3,1.4364]
[1761056344202,10.885,3944.2,3943.3,1.4364]
[1761056344403,10.885,3944.2,3942.8,1.4364]
[1761056344404,1.4234,3944.1,3942.8,1.4364]
[1761056344603,0.45627,3943.9,3942.1,1.4364]
[1761056344913,0.00245698,3944.2,3943.6,1.4364]
[1761056345102,0.13250822,3942.9,3942.1,1.4364]
[1761056345299,0.45639,3942.8,3942.1,1.4364]
[1761056345499,0.45641,3942.6,3942.1,1.4364]
[1761056345709,1.4234,3942.6,3941.4,0.00201624]
[1761056346005,0.45644,3942.4,3941.6,1.4364]
[1761056346212,1.4234,3942.3,3941.4,0.00201624]
[1761056346407,1.14109,3942.4,3941.4,0.00201624]
[1761056346408,0.45653,3941.6,3941.4,0.00201624]
[1761056346610,1.4234,3941.6,3941.4,0.00201624]
[1761056346816,5.165,3941.5,3941.4,0.00201624]
[1761056347108,11.007,3941.5,3941.4,0.00201624]
[1761056347313,6.87993,3941.6,3941.4,0.00201624]
[1761056347508,12.4204,3941.5,3941.4,0.00201624]
[1761056347906,17.4204,3941.5,3941.4,0.00201624]
[1761056348110,0.45643,3942.4,3941.6,0.45652]
[1761056348304,2.33051875,3942.6,3941.7,1.4364]
[1761056348507,2.33051875,3942.6,3941.4,0.00201624]
[1761056348508,1.4234,3942.2,3941.4,0.00201624]
[1761056348816,11.43747,3942.1,3941.5,1.4364]
[1761056349006,10.981,3942.1,3941.5,1.4364]
[1761056349207,10.981,3942.1,3941.4,0.00201624]
[1761056349208,0.45653,3941.6,3941.4,0.00201624]
[1761056349412,1.4234,3941.5,3941.4,0.00201624]
[1761056350004,12.3894,3941.5,3941.4,0.00201624]
[1761056350509,6.4234,3941.5,3941.4,0.00201624]
[1761056350715,17.3844,3941.5,3941.4,0.00201624]
[1761056350918,1.4234,3941.5,3941.4,0.00201624]
[1761056351209,12.3704,3941.5,3941.4,0.00201624]
[1761056351517,10.969,3941.5,3941.4,0.00201624]
[1761056351717,0.2549,3942.2,3941.5,1.4364]
[1761056351909,0.2536719,3942.1,3941.4,0.00201624]
[1761056352415,1.4234,3941.5,3941.4,0.00201624]
[1761056352808,12.3734,3941.5,3941.4,0.00201624]
[1761056353211,1.4234,3941.3,3939.9,1.4364]
[1761056353513,0.45664,3940.6,3939.9,1.4364]
[1761056353712,10.941,3940.5,3940.0,0.5677]
[1761056353907,1.4234,3940.4,3939.1,1.4364]
[1761056354106,1.4234,3940.2,3939.1,1.4364]
[1761056354303,0.00305469,3940.4,3939.1,1.43892174]
[1761056354510,0.45671,3940.0,3939.1,1.43892174]
[1761056354712,12.3614,3940.3,3939.1,1.89572174]
[1761056354915,0.45672,3939.9,3939.1,1.89572174]
[1761056355114,1.4234,3940.2,3939.1,1.43892174]
[1761056355319,0.45669,3940.1,3939.2,0.45679]
[1761056355507,10.928,3940.0,3939.7,0.45673]
[1761056355706,10.928,3940.0,3939.2,1.4364]
[1761056355707,10.928,3940.0,3939.9,1.4364]
[1761056356111,0.00305469,3940.4,3939.1,0.00252174]
[1761056356318,1.4234,3942.1,3940.4,1.4364]
[1761056356510,1.4234,3942.1,3940.2,0.5677]
[1761056356511,1.4234,3941.5,3940.2,2.0041]
[1761056356704,40.8,3941.4,3940.2,1.4364]
[1761056356918,0.4566,3940.9,3940.2,1.89307]
[1761056357117,1.4234,3941.3,3940.5,0.45664]
[1761056357317,10.907,3941.2,3940.6,1.4364]
[1761056357512,0.00286409,3941.3,3940.8,1.4364]
[1761056357817,0.00286409,3941.3,3941.1,1.4364]
[1761056358216,0.45942409,3941.3,3940.5,1.3362]
[1761056358412,0.45662,3940.8,3940.0,1.3362]
[1761056358610,1.25116409,3941.3,3940.0,1.3362]
[1761056358811,1.25116409,3941.3,3940.8,0.45661]
[1761056358812,10.89786409,3941.3,3940.8,0.45661]
[1761056359113,0.00286409,3941.3,3941.2,1.3362]
[1761056360211,0.00286409,3941.3,3941.2,1.79276]
[1761056361023,5.691,3942.3,3942.1,1.3189]
[1761056361318,1.3049,3944.1,3942.4,1.3189]
[1761056361507,1.3049,3944.1,3942.0,1.67455]
[1761056361508,0.45628,3943.7,3943.2,1.3189]
[1761056361710,10.86,3944.0,3943.2,1.3189]
[1761056361912,0.45629,3943.6,3943.2,1.32201781]
[1761056362210,0.4563,3943.5,3943.2,0.00311781]
[1761056362417,1.3049,3943.6,3943.2,0.00311781]
[1761056362608,0.45632,3943.4,3943.2,0.00311781]
[1761056362809,10.86257937,3944.0,3943.2,1.32201781]
[1761056363006,1.76121,3943.4,3943.2,0.00311781]
[1761056363210,1.3049,3943.3,3943.2,0.00311781]
[1761056363414,0.45657,3941.1,3940.9,0.2781907]
[1761056363616,0.45674,3939.7,3939.6,3.14283831]
[1761056363820,0.45693,3938.1,3937.7,1.3189]
[1761056364009,0.45693,3938.1,3937.1,1.3189]
[1761056364010,6.458,3938.1,3937.1,1.3189]
[1761056364209,1.2174,3938.4,3937.2,5.78884842]
[1761056364522,0.63510507,3938.3,3937.4,1.3189]
[1761056364813,0.45686,3938.7,3938.4,1.3189]
[1761056365015,0.45685,3938.7,3938.6,0.2537]
[1761056365205,0.26577782,3938.7,3938.4,1.3189]